bitfinex/quotes_SOLUSD_20241021
["timestamp","ask_amount","ask_price","bid_price","bid_amount"]
[1729500429502,5.9592,167.81,167.74,5.9615]
[1729500431803,20.0,167.84,167.74,5.9615]
[1729500432103,5.9595,167.8,167.74,5.9615]
[1729500432288,5.9613,167.75,167.69,20.8715]
[1729500432491,5.9616,167.74,167.7,1.49175235]
[1729500432692,20.0,167.79,167.69,14.9082]
[1729500433296,5.9616,167.74,167.69,20.8715]
[1729500433492,14.9004,167.78,167.68,28.2352]
[1729500433697,5.9605,167.77,167.71,5.9626]
[1729500435299,5.9605,167.77,167.72,5.9621]
[1729500435487,45.033384,167.83,167.7,20.0]
[1729500435488,20.0,167.82,167.7,20.0]
[1729500435806,20.0,167.82,167.74,5.9613]
[1729500435807,5.9597,167.8,167.74,5.9613]
[1729500435980,5.9591,167.81,167.75,5.9611]
[1729500436176,5.9595,167.8,167.74,5.9615]
[1729500436587,5.9599,167.79,167.74,5.9615]
[1729500439207,0.1,167.84,167.7,20.0]
[1729500439413,5.962,167.73,167.71,1.49166084]
[1729500439580,20.0,167.77,167.67,5.964]
[1729500439784,20.0,167.75,167.66,2.38718572]
[1729500439984,5.963,167.7,167.65,20.8758]
[1729500441410,5.963,167.7,167.65,14.9111]
[1729500441616,5.963,167.7,167.65,20.8758]
[1729500442103,5.9638,167.68,167.63,5.9651]
[1729500442288,5.9638,167.68,167.64,1.49226955]
[1729500442602,5.9642,167.67,167.61,20.8807]
[1729500442812,5.9642,167.67,167.62,1.49249341]
[1729500443185,6.4481,167.72,167.62,1.49249341]
[1729500443384,5.9646,167.66,167.61,20.8807]
[1729500444012,5.9644,167.67,167.61,20.8807]
[1729500444218,20.0,167.71,167.65,14.9117]
[1729500444404,5.9623,167.72,167.62,23.776884]
[1729500444600,5.9626,167.71,167.66,5.9643]
[1729500444986,5.9626,167.71,167.64,5.9648]
[1729500445706,5.963,167.7,167.64,5.9648]
[1729500446409,20.2,167.75,167.63,20.8789]
[1729500446616,5.9642,167.67,167.64,1.49232261]
[1729500446913,5.9642,167.67,167.61,5.9662]
[1729500447086,5.9651,167.65,167.62,1.49247816]
[1729500447293,5.9662,167.61,167.57,0.604176]
[1729500447525,20.0,167.66,167.57,0.604176]
[1729500447526,5.9659,167.62,167.58,1.49274571]
[1729500447827,5.9664,167.61,167.58,1.49274571]
[1729500447989,5.9666,167.6,167.58,1.49274571]
[1729500450213,5.9648,167.65,167.59,20.8842]
[1729500450410,5.9658,167.63,167.57,0.604176]
[1729500450794,5.9659,167.62,167.57,2.09698482]
[1729500451108,5.9659,167.62,167.58,1.49280882]
[1729500451285,34.9111,167.66,167.57,2.99267012]
[1729500451487,5.9665,167.61,167.58,1.49281745]
[1729500451715,20.8768,167.65,167.58,1.49281745]
[1729500451920,5.967,167.59,167.57,0.604176]
[1729500455729,36.2092,167.64,167.57,0.604176]
[1729500455928,5.9672,167.58,167.57,0.604176]
[1729500456930,25.9672,167.58,167.57,0.604176]
[1729500458223,43.976884,167.58,167.51,2.38919512]
[1729500458527,5.9691,167.53,167.48,7.11965]
[1729500458706,5.9691,167.53,167.49,1.49349862]
[1729500458909,5.9691,167.53,167.5,1.49349862]
[1729500459124,5.9691,167.53,167.51,1.49349862]
[1729500459313,5.9691,167.53,167.48,1.14885]
[1729500459513,5.9691,167.53,167.49,1.49344809]
[1729500459713,5.9691,167.53,167.5,1.49344809]
[1729500459910,5.9691,167.53,167.48,1.14885]
[1729500460121,5.9679,167.57,167.51,5.9697]
[1729500460316,5.968,167.56,167.52,1.49347553]
[1729500461332,43.776884,167.6,167.53,1.49328881]
[1729500461527,5.9689,167.54,167.51,2.3892621]
[1729500461840,5.969,167.54,167.48,9.50880214]
[1729500462013,5.969,167.54,167.49,1.49343249]
[1729500462338,5.9692,167.53,167.5,1.49343249]
[1729500462510,5.9692,167.53,167.51,1.49343249]
[1729500462719,5.9692,167.53,167.48,9.50880214]
[1729500462922,5.9692,167.53,167.49,1.49342862]
[1729500463117,5.9692,167.53,167.5,1.49342862]
[1729500463332,5.9692,167.53,167.51,1.49342862]
[1729500463643,5.9692,167.53,167.48,9.50880214]
[1729500463935,5.9692,167.53,167.49,1.49337675]
[1729500464140,5.9692,167.53,167.5,1.49337675]
[1729500464342,5.9692,167.53,167.51,1.49337675]
[1729500464541,5.9672,167.59,167.51,23.776884]
[1729500464717,5.9672,167.59,167.54,5.9686]
[1729500465037,5.968,167.56,167.5,30.3074]
[1729500465240,5.968,167.56,167.51,3.88245027]
[1729500465442,5.9684,167.55,167.51,3.88245027]
[1729500465740,5.9684,167.55,167.52,1.4932501]
[1729500465914,5.9684,167.55,167.5,30.3074]
[1729500466239,5.9684,167.55,167.51,1.49336121]
[1729500467234,5.969,167.54,167.51,1.49336121]
[1729500467549,5.969,167.54,167.5,15.3823]
[1729500467715,5.9683,167.55,167.51,1.49344198]
[1729500468822,5.9683,167.55,167.5,21.3524]
[1729500469021,41.3983,167.54,167.43,14.9308]
[1729500469242,5.9705,167.49,167.43,14.9308]
[1729500469540,5.9705,167.49,167.43,20.9033]
[1729500469712,41.3983,167.54,167.43,20.9033]
[1729500469713,5.97,167.51,167.44,8.36205599]
[1729500469917,41.3983,167.54,167.44,2.38995599]
[1729500470116,41.3983,167.54,167.43,14.9308]
[1729500470117,5.9698,167.51,167.45,5.9718]
[1729500470342,5.9697,167.51,167.43,20.9033]
[1729500470639,5.9705,167.49,167.43,20.9032]
[1729500471346,25.9694,167.53,167.46,5.9715]
[1729500471523,20.0,167.54,167.45,5.9719]
[1729500471720,5.969,167.53,167.45,5.9719]
[1729500471916,15.3752,167.55,167.44,16.1896]
[1729500472135,36.282,167.58,167.46,14.9285]
[1729500472317,5.9695,167.52,167.46,20.9]
[1729500472519,7.38216191,167.58,167.46,14.9285]
[1729500472939,7.38216191,167.58,167.46,17.31846413]
[1729500473128,7.38216191,167.58,167.46,17.3184591]
[1729500473354,20.0,167.57,167.47,5.9712]
[1729500473522,5.9684,167.55,167.49,5.9702]
[1729500473724,5.9672,167.58,167.52,5.9694]
[1729500474037,5.9669,167.6,167.53,5.969]
[1729500474224,5.9662,167.61,167.56,5.9679]
[1729500474426,5.9662,167.61,167.54,20.8898]
[1729500474930,5.9669,167.6,167.54,20.8898]
[1729500477431,16.2435,167.64,167.54,14.9215]
[1729500477640,5.9667,167.6,167.54,20.8901]
[1729500479746,5.9669,167.6,167.54,14.9215]
[1729500479943,5.9672,167.59,167.54,14.9215]
[1729500480825,20.0,167.63,167.54,14.9215]
[1729500481029,20.0,167.61,167.52,6.4918]
[1729500481239,5.9676,167.57,167.53,1.49326371]
[1729500481935,5.9672,167.59,167.53,7.46216371]
[1729500482139,5.9672,167.59,167.54,5.9685]
[1729500482344,5.9686,167.55,167.52,6.4918]
[1729500482646,5.968,167.56,167.52,6.4918]
[1729500482949,5.9678,167.57,167.51,22.0983]
[1729500483145,5.9681,167.56,167.51,22.0983]
[1729500483327,34.9164,167.6,167.51,16.1287]
[1729500483536,20.0,167.58,167.49,20.8958]
[1729500484234,5.9676,167.57,167.49,14.9256]
[1729500484431,5.969,167.54,167.49,14.9256]
[1729500484655,20.0,167.58,167.48,7.49455]
[1729500484846,5.9697,167.52,167.48,1.14885]
[1729500485035,20.0,167.59,167.48,1.14885]
[1729500485036,20.0,167.56,167.48,1.14885]
[1729500485233,5.9696,167.52,167.48,1.14885]
[1729500485755,14.9209,167.55,167.48,1.14885]
[1729500486057,5.9695,167.52,167.48,1.14885]
[1729500487155,14.9209,167.55,167.48,1.14885]
[1729500487544,5.9705,167.49,167.48,1.14885]
[1729500488647,20.0,167.55,167.48,1.14885]
[1729500488858,5.9705,167.49,167.48,1.14885]
[1729500492638,25.9705,167.49,167.48,1.14885]
[1729500494656,5.9705,167.49,167.48,1.14885]
[1729500495992,6.22159377,167.54,167.48,1.14885]
[1729500496270,5.9694,167.52,167.48,1.14885]
[1729500496564,6.22159377,167.54,167.48,1.14885]
[1729500496858,5.9691,167.53,167.48,7.11965]
[1729500497446,5.9694,167.53,167.48,1.14885]
[1729500497645,5.9697,167.51,167.48,1.14885]
[1729500498057,5.9694,167.53,167.48,1.14885]
[1729500498662,12.56089915,167.57,167.48,1.14885]
[1729500498866,5.969,167.54,167.48,16.07595]
[1729500499053,5.9684,167.55,167.49,5.9703]
[1729500499261,5.969,167.53,167.49,15.7999]
[1729500502660,5.9686,167.55,167.49,15.7999]
[1729500502865,6.22129915,167.57,167.49,15.7999]
[1729500503044,5.9696,167.52,167.49,15.7999]
[1729500503248,5.9696,167.52,167.5,1.49364306]
[1729500504051,5.9696,167.52,167.49,15.7999]
[1729500504263,14.92,167.56,167.5,1.49364986]
[1729500504462,6.21266715,167.59,167.48,1.14885]
[1729500504463,5.9703,167.5,167.48,1.14885]
[1729500505161,29.8364,167.58,167.48,1.14885]
[1729500505162,5.9705,167.49,167.48,1.14885]
[1729500505559,5.9705,167.49,167.48,2.64270987]
[1729500505854,5.9705,167.49,167.48,2.64270186]
[1729500506064,6.21266715,167.59,167.48,2.64270186]
[1729500506261,6.21266715,167.59,167.49,1.49385186]
[1729500506558,5.9698,167.51,167.5,1.49385186]
[1729500507459,14.9191,167.57,167.5,3.88401485]
[1729500507673,5.9693,167.53,167.51,1.49385186]
[1729500507879,5.9693,167.53,167.5,2.39016299]
[1729500508061,5.9693,167.53,167.51,1.49364205]
[1729500508380,5.9693,167.53,167.52,1.4936133]
[1729500510356,12.17986715,167.59,167.53,15.4807]
[1729500510555,5.9653,167.64,167.55,5.968]
[1729500510866,5.9653,167.64,167.56,3.88343917]
[1729500511071,5.9665,167.6,167.57,3.88343917]
[1729500511271,5.9665,167.6,167.58,3.88343917]
[1729500511465,5.9665,167.6,167.59,1.4936133]
[1729500511866,5.9662,167.61,167.59,1.4936133]
[1729500512076,5.9662,167.61,167.6,1.4936133]
[1729500512380,14.9102,167.67,167.6,1.4936133]
[1729500512381,5.9658,167.63,167.6,1.4936133]
[1729500512558,5.9662,167.62,167.56,2.38876146]
[1729500512757,5.9662,167.62,167.57,3.8817222]
[1729500512971,5.9662,167.62,167.58,3.8817222]
[1729500513162,1.03735426,167.68,167.55,20.76133786]
[1729500513163,20.0,167.66,167.59,1.49296991]
[1729500513371,14.912,167.65,167.6,1.49296991]
[1729500513677,21.03735426,167.68,167.57,2.38876233]
[1729500513878,21.03735426,167.68,167.58,3.88174322]
[1729500514083,21.03735426,167.68,167.56,5.9678]
[1729500514084,5.9658,167.62,167.59,1.49298089]
[1729500514282,5.9656,167.63,167.6,1.49298089]
[1729500514460,21.03735426,167.68,167.58,2.38874517]
[1729500514781,5.966,167.62,167.59,3.88168628]
[1729500514983,5.966,167.62,167.6,1.49296355]
[1729500515166,5.966,167.62,167.57,2.38864745]
[1729500515492,5.9664,167.61,167.58,3.88156247]
[1729500515656,5.9664,167.61,167.59,3.88156247]
[1729500515983,5.9648,167.65,167.6,1.49291502]
[1729500516156,5.9659,167.62,167.61,1.49291502]
[1729500516560,5.9659,167.62,167.59,2.38864745]
[1729500516756,5.9659,167.62,167.6,1.49289175]
[1729500516961,5.9659,167.62,167.58,2.38864745]
[1729500517186,5.9659,167.62,167.59,3.88153898]
[1729500517381,5.9659,167.62,167.6,1.49289153]
[1729500517590,5.9659,167.62,167.58,2.38864745]
[1729500517767,5.9659,167.62,167.59,1.49289325]
[1729500518082,14.9111,167.66,167.6,16.72119325]
[1729500518257,5.9657,167.63,167.6,15.2283]
[1729500520281,5.9657,167.63,167.57,5.9675]
[1729500520282,20.0,167.67,167.56,16.3233]
[1729500520481,5.9676,167.57,167.56,16.3233]
[1729500520666,5.9673,167.58,167.56,17.81639005]
[1729500520862,5.9673,167.58,167.57,1.49309005]
[1729500521281,5.968,167.56,167.55,2.38871886]
[1729500521481,29.9222,167.66,167.51,17.0844148]
[1729500521482,20.0,167.62,167.52,2.38871886]
[1729500521671,5.9665,167.6,167.53,1.4934333]
[1729500521872,5.9679,167.57,167.54,1.4934333]
[1729500522079,5.9679,167.57,167.52,2.38871886]
[1729500522289,20.0,167.6,167.53,1.49334243]
[1729500522495,5.9681,167.56,167.54,1.49334243]
[1729500522800,5.969,167.53,167.51,16.3233]
[1729500522987,5.969,167.53,167.48,1.14885]
[1729500522988,5.9697,167.51,167.5,2.38973588]
[1729500523290,5.9697,167.51,167.48,1.14885]
[1729500523291,5.9705,167.49,167.48,1.14885]
[1729500523666,5.9694,167.52,167.48,2.64266105]
[1729500523886,20.0,167.59,167.49,1.49381105]
[1729500524071,20.0,167.59,167.5,1.49381105]
[1729500524270,20.0,167.59,167.48,7.11945]
[1729500524271,20.0,167.59,167.51,1.49365138]
[1729500524582,20.0,167.61,167.49,8.36067337]
[1729500524776,5.9681,167.56,167.5,7.46358456]
[1729500524966,5.9681,167.56,167.51,16.72998456]
[1729500525166,5.9672,167.59,167.52,7.46288456]
[1729500525369,30.6111,167.62,167.53,1.49358456]
[1729500525576,5.9676,167.57,167.51,20.0]
[1729500525885,0.2,167.61,167.51,20.0]
[1729500526061,0.2,167.61,167.43,5.19388814]
[1729500526062,5.9669,167.59,167.43,5.19388814]
[1729500526261,5.9665,167.6,167.43,4.43241741]
[1729500526470,0.1,167.62,167.53,5.9687]
[1729500526785,6.0666,167.6,167.53,5.9687]
[1729500526982,5.9666,167.6,167.53,5.9687]
[1729500527486,5.9672,167.59,167.53,5.9687]
[1729500527694,5.9665,167.6,167.46,20.0]
[1729500527983,5.9665,167.6,167.54,5.9687]
[1729500528189,5.967,167.59,167.54,5.9687]
[1729500528782,0.1,167.62,167.54,5.9687]
[1729500528783,5.9665,167.61,167.54,5.9687]
[1729500528982,6.0659,167.62,167.56,5.9679]
[1729500529289,5.9673,167.58,167.53,25.969]
[1729500529598,5.9671,167.59,167.53,25.969]
[1729500530384,5.9682,167.56,167.52,22.1744]
[1729500530775,5.968,167.56,167.52,22.1744]
[1729500530998,5.9684,167.55,167.51,14.9241]
[1729500531167,5.9689,167.54,167.49,5.9704]
[1729500531490,5.9687,167.54,167.48,22.3591]
[1729500531691,0.2,167.55,167.48,28.3298]
[1729500531884,0.1,167.55,167.5,5.9698]
[1729500532289,5.9683,167.56,167.51,5.9697]
[1729500532477,6.067,167.59,167.5,5.9701]
[1729500532679,6.067,167.59,167.53,5.9687]
[1729500532889,0.1,167.58,167.53,5.9687]
[1729500533191,5.967,167.59,167.53,5.9687]
[1729500533397,0.1,167.58,167.49,29.8525]
[1729500533695,0.1,167.58,167.54,5.9687]
[1729500533890,0.1,167.61,167.49,29.8525]
[1729500533891,6.0666,167.6,167.55,5.9683]
[1729500534382,0.1,167.58,167.53,5.9687]
[1729500534580,5.9677,167.57,167.52,5.9694]
[1729500535279,5.9677,167.57,167.53,23.776884]
[1729500535493,6.0677,167.57,167.53,23.776884]
[1729500536293,0.1,167.57,167.52,23.776884]
[1729500536596,5.9681,167.56,167.52,23.776884]
[1729500536807,0.1,167.55,167.49,5.9701]
[1729500537096,6.069,167.54,167.49,8.35954308]
[1729500537301,0.1,167.54,167.5,5.9699]
[1729500537597,0.1,167.54,167.51,1.49357196]
[1729500537798,0.2,167.54,167.49,14.9259]
[1729500538100,0.2,167.52,167.46,20.9]
[1729500538304,6.0694,167.52,167.47,3.8835981]
[1729500538596,0.1,167.54,167.49,20.8959]
[1729500538798,0.1,167.53,167.5,1.49369158]
[1729500538987,0.1,167.53,167.51,1.49369158]
[1729500539189,0.1,167.53,167.5,23.776884]
[1729500539394,0.1,167.53,167.51,1.49361903]
[1729500539781,0.1,167.51,167.45,14.9292]
[1729500539997,0.1,167.51,167.46,3.88344882]
[1729500540199,0.1,167.51,167.47,1.49363416]
[1729500540402,5.9704,167.5,167.48,1.49363416]
[1729500540706,5.9704,167.5,167.49,1.49363416]
[1729500541286,5.9704,167.5,167.47,1.49363416]
[1729500541506,5.9704,167.5,167.48,1.49363416]
[1729500541691,5.9704,167.5,167.49,1.49363416]
[1729500541889,5.9704,167.5,167.47,1.49363416]
[1729500542087,5.9704,167.5,167.48,1.49363416]
[1729500542286,5.9704,167.5,167.49,1.49363416]
[1729500542891,5.9704,167.5,167.47,1.49363416]
[1729500543093,5.9704,167.5,167.48,1.49363416]
[1729500543292,5.9704,167.5,167.46,2.38981466]
[1729500543494,5.9704,167.5,167.47,1.49378887]
[1729500543705,5.9704,167.5,167.48,1.49378887]
[1729500543912,0.1,167.51,167.46,2.38981466]
[1729500544209,0.1,167.51,167.47,27.66047826]
[1729500544388,0.1,167.51,167.48,3.88359426]
[1729500544585,6.1701,167.5,167.49,1.4937796]
[1729500544783,5.9708,167.48,167.44,2.38981466]
[1729500544983,6.0704,167.5,167.45,7.46574987]
[1729500545209,6.0704,167.5,167.46,1.49384987]
[1729500545210,5.9704,167.5,167.46,1.49384987]
[1729500545389,5.9705,167.49,167.47,1.49384987]
[1729500545583,5.9705,167.49,167.48,1.49384987]
[1729500546506,5.9705,167.49,167.46,1.49384987]
[1729500546507,6.0705,167.49,167.46,1.49384987]
[1729500546700,6.0705,167.49,167.47,1.49384987]
[1729500546895,6.0705,167.49,167.48,1.49384987]
[1729500547100,6.0705,167.49,167.44,8.36201466]
[1729500547101,6.0705,167.49,167.45,1.49384987]
[1729500547302,5.971,167.48,167.46,1.49384987]
[1729500547608,6.0705,167.49,167.47,1.49384987]
[1729500547790,6.0705,167.49,167.45,23.776884]
[1729500547990,6.0705,167.49,167.46,1.49388099]
[1729500548193,6.0705,167.49,167.47,1.49388099]
[1729500548491,6.0705,167.49,167.48,1.49381198]
[1729500548692,0.1,167.52,167.48,1.49381198]
[1729500548992,0.1,167.52,167.46,2.39009917]
[1729500548993,6.0701,167.5,167.49,1.49377991]
[1729500550007,5.9701,167.5,167.47,1.49377991]
[1729500550217,5.9701,167.5,167.48,1.49377991]
[1729500550408,5.9701,167.5,167.49,1.49377991]
[1729500550705,6.0696,167.52,167.49,1.49377991]
[1729500550914,6.0696,167.52,167.48,5.9708]
[1729500551121,6.0696,167.52,167.49,1.49375394]
[1729500551288,6.0696,167.52,167.5,1.49375394]
[1729500551489,6.0696,167.52,167.48,5.9708]
[1729500551689,6.0702,167.5,167.49,1.49374031]
[1729500552105,5.9702,167.5,167.49,1.49374031]
[1729500552294,21.49462947,167.58,167.49,1.49374031]
[1729500552295,0.1,167.53,167.49,1.49374031]
[1729500552502,5.9694,167.52,167.5,1.49374031]
[1729500552687,0.1,167.54,167.48,5.9708]
[1729500552890,6.0682,167.56,167.51,23.776884]
[1729500553091,0.1,167.56,167.52,7.46278699]
[1729500553309,0.1,167.56,167.53,1.49348699]
[1729500553511,0.1,167.56,167.54,1.49348699]
[1729500553816,0.1,167.55,167.52,2.38948772]
[1729500553992,6.068,167.56,167.53,1.49340638]
[1729500554189,6.068,167.56,167.52,2.38948772]
[1729500554190,6.068,167.56,167.54,1.49340638]
[1729500554390,6.068,167.56,167.55,1.49340638]
[1729500554593,6.068,167.56,167.55,1.49334621]
[1729500556911,30.3885,167.62,167.56,5.968]
[1729500556912,0.1,167.58,167.56,5.968]
[1729500557094,0.1,167.58,167.57,1.49334621]
[1729500557602,0.1,167.61,167.57,1.49334621]
[1729500557810,0.2,167.65,167.61,5.9661]
[1729500557999,6.1648,167.65,167.59,14.9173]
[1729500558192,6.0652,167.64,167.6,1.49284215]
[1729500558388,6.0652,167.64,167.61,1.49284215]
[1729500558588,6.0652,167.64,167.59,20.8842]
[1729500558811,6.0652,167.64,167.6,1.4928362]
[1729500559009,6.0652,167.64,167.61,1.4928362]
[1729500559194,6.0652,167.64,167.59,20.8842]
[1729500559392,6.0652,167.64,167.6,1.49278365]
[1729500559619,6.0652,167.64,167.61,1.49278365]
[1729500559823,0.1,167.64,167.59,20.8842]
[1729500560020,0.1,167.64,167.6,1.49278537]
[1729500560316,0.1,167.66,167.62,14.9146]
[1729500560508,0.2,167.7,167.58,22.38834544]
[1729500560827,0.1,167.7,167.59,23.88090714]
[1729500561007,0.1,167.71,167.6,23.88090714]
[1729500561206,0.1,167.72,167.68,5.9634]
[1729500561426,6.162,167.73,167.68,5.9634]
[1729500561608,6.162,167.73,167.63,2.38834544]
[1729500561803,0.1,167.72,167.67,20.8739]
[1729500562108,0.1,167.71,167.67,20.8739]
[1729500562308,6.0623,167.72,167.67,20.8739]
[1729500562712,6.1623,167.72,167.67,20.8739]
[1729500563019,0.1,167.71,167.67,20.8739]
[1729500563222,6.1623,167.72,167.67,20.8739]
[1729500563423,6.0623,167.72,167.67,20.8739]
[1729500563738,0.1,167.75,167.65,15.7402]
[1729500563900,7.1918459,167.79,167.66,21.49223741]
[1729500564097,38.0957,167.83,167.66,21.49223741]
[1729500564098,0.1,167.81,167.67,1.49223741]
[1729500564320,6.0593,167.81,167.75,5.961]
[1729500564507,16.6543,167.83,167.73,6.5378]
[1729500564508,0.2,167.78,167.73,6.5378]
[1729500564908,0.1,167.78,167.73,6.5378]
[1729500565309,0.2,167.78,167.73,6.5378]
[1729500565513,5.9613,167.75,167.7,14.9072]
[1729500565711,6.0609,167.76,167.7,20.8701]
[1729500566723,6.0609,167.76,167.71,5.9626]
[1729500567225,5.962,167.73,167.67,5.9637]
[1729500567524,0.1,167.72,167.67,5.9637]
[1729500567907,6.1623,167.72,167.67,5.9637]
[1729500568205,6.1623,167.72,167.66,20.8748]
[1729500569325,6.1623,167.72,167.67,5.964]
[1729500569624,6.0623,167.72,167.67,5.964]
[1729500570815,0.1,167.76,167.66,20.0]
[1729500571105,6.0606,167.77,167.66,20.0]
[1729500571106,0.1,167.77,167.72,5.9621]
[1729500571305,6.0601,167.78,167.66,20.0]
[1729500571512,0.1,167.8,167.67,1.4919194]
[1729500571720,0.1,167.8,167.68,1.4919194]
[1729500571923,0.1,167.81,167.77,5.9603]
[1729500572427,0.1,167.83,167.8,5.9594]
[1729500572601,0.1,167.83,167.73,22.5281]
[1729500572804,0.1,167.84,167.74,1.49138907]
[1729500573104,0.1,167.86,167.8,5.9593]
[1729500573105,0.1,167.85,167.8,5.9593]
[1729500573627,6.0574,167.86,167.81,5.959]
[1729500574121,5.9574,167.86,167.8,5.9594]
[1729500574428,6.0574,167.86,167.8,5.9594]
[1729500574616,0.2,167.88,167.73,22.5281]
[1729500574832,0.1,167.86,167.81,5.9588]
[1729500575406,5.957,167.87,167.75,2.38541618]
[1729500575407,0.1,167.88,167.83,5.9584]
[1729500575707,0.1,167.88,167.76,29.8044]
[1729500575708,0.1,167.84,167.81,5.9591]
[1729500575913,0.1,167.84,167.8,20.858]
[1729500577227,0.1,167.85,167.74,20.0]
[1729500577534,15.2353,167.91,167.74,20.0]
[1729500577535,0.1,167.87,167.84,29.734684]
[1729500577701,6.0562,167.9,167.84,29.734684]
[1729500577702,0.1,167.88,167.84,29.734684]
[1729500577907,0.1,167.89,167.84,23.776884]
[1729500578106,0.1,167.89,167.86,5.9571]
[1729500578544,0.1,167.92,167.87,5.9569]
[1729500578730,6.1551,167.93,167.87,5.9569]
[1729500578934,6.0551,167.93,167.88,23.776884]
[1729500579232,0.1,167.91,167.88,38.667984]
[1729500579525,0.1,167.91,167.88,44.624484]
[1729500579732,0.1,167.9,167.86,23.776884]
[1729500580036,0.1,167.9,167.87,23.776884]
[1729500580918,0.1,167.9,167.86,5.9572]
[1729500580919,0.1,167.9,167.85,20.8517]
[1729500581310,0.1,167.89,167.86,23.776884]
[1729500581819,0.2,167.88,167.81,37.7563]
[1729500582024,0.2,167.87,167.82,1.49045097]
[1729500582213,0.1,167.84,167.77,36.6831]
[1729500582413,6.058,167.84,167.78,1.4907287]
[1729500582616,0.1,167.84,167.79,5.9598]
[1729500583310,0.1,167.83,167.8,23.776884]
[1729500583743,6.0581,167.84,167.79,5.9598]
[1729500583744,0.1,167.82,167.79,5.9598]
[1729500584533,0.1,167.83,167.8,5.9593]
[1729500585426,0.1,167.83,167.81,23.776884]
[1729500585827,0.1,167.86,167.8,23.776884]
[1729500586220,0.1,167.87,167.84,5.9579]
[1729500586423,0.1,167.86,167.83,14.8958]
[1729500586630,0.1,167.86,167.84,23.776884]
[1729500588817,0.1,167.85,167.78,20.0]
[1729500589012,0.1,167.85,167.81,5.9591]
[1729500589537,0.1,167.85,167.83,23.776884]
[1729500589720,0.1,167.88,167.83,23.776884]
[1729500589931,0.1,167.88,167.86,23.776884]
[1729500590325,0.1,167.89,167.86,23.776884]
[1729500590835,0.1,167.89,167.87,29.733784]
[1729500591029,0.1,167.9,167.87,29.733784]
[1729500592240,0.1,167.89,167.87,29.733784]
[1729500593132,0.1,167.89,167.87,23.776884]
[1729500593341,0.1,167.89,167.85,5.9576]
[1729500593559,0.1,167.89,167.86,23.776884]
[1729500594846,6.0572,167.87,167.83,14.896]
[1729500595046,5.9575,167.86,167.81,5.9589]
[1729500595545,0.1,167.85,167.8,14.8984]
[1729500595855,0.1,167.85,167.81,5.9589]
[1729500596646,6.0574,167.86,167.82,23.776884]
[1729500596844,6.0574,167.86,167.81,5.9589]
[1729500596845,5.958,167.84,167.8,14.8984]
[1729500597229,6.058,167.84,167.8,14.8984]
[1729500597950,5.9584,167.83,167.78,5.9598]
[1729500598330,5.9584,167.83,167.79,23.776884]
[1729500598936,0.1,167.82,167.77,5.9605]
[1729500600048,6.1584,167.83,167.77,5.9605]
[1729500600250,0.1,167.82,167.78,23.776884]
[1729500600865,0.2,167.81,167.75,5.9609]
[1729500601073,22.55003965,167.89,167.74,22.5755]
[1729500601074,0.1,167.79,167.74,22.5755]
[1729500601230,0.1,167.83,167.79,5.9597]
[1729500601550,4.5577,167.85,167.79,5.9596]
[1729500602134,4.5577,167.85,167.8,23.776884]
[1729500603353,5.9573,167.86,167.81,5.959]
[1729500603537,0.1,167.87,167.8,38.675484]
[1729500603538,5.9577,167.85,167.8,44.634884]
[1729500604864,5.9577,167.85,167.76,4.49419119]
[1729500604865,0.1,167.83,167.77,14.9011]
[1729500605163,5.9594,167.81,167.74,22.5755]